fUSD/lending_fUSD_20240217
["ID","MTS","AMOUNT","RATE_DAILY","PERIOD"]
[314277267,1708140639463,-1085.53403859,0.00043867,18]
[314277268,1708140639472,-164.6283848,0.00043867,2]
[314277269,1708140639482,-766.0,0.0004389,2]
[314277270,1708140639491,-1000.0,0.00043911,2]
[314277271,1708140639500,-10699.3073011,0.00043926,11]
[314277272,1708140639509,-333699.913116,0.00043957,10]
[314277273,1708140639518,-198262.2168,0.00043967,2]
[314277274,1708140639529,-1222.8295,0.00043967,2]
[314277275,1708140639538,-1000.0,0.00043967,2]
[314277276,1708140639548,-2460.2944,0.00043967,2]
[314277277,1708140639558,-155.0,0.00043967,2]
[314277278,1708140639567,-245000.0,0.00043967,2]
[314277279,1708140639577,-39498.4927,0.00043967,2]
[314277280,1708140639586,-322.0563,0.00043967,2]
[314277281,1708140639596,-100000.0,0.00043967,2]
[314277282,1708140639605,-500.0,0.00043967,2]
[314277283,1708140639614,-14678.96425444,0.00043967,2]
[314277284,1708140639623,-440.14295328,0.00043967,2]
[314277285,1708140639632,-68192.0,0.00043973,30]
[314277286,1708140639641,-471.0,0.0004399,2]
[314277287,1708140639650,-83424.9782789,0.00044057,10]
[314277288,1708140639659,-406629.68392014,0.00044067,2]
[314277289,1708140639668,-456.8,0.00044367,30]
[314277290,1708140639678,-1000.0,0.000447,2]
[314277291,1708140639687,-7668.70450871,0.00044705,6]
[314277292,1708140639696,-2332.69906319,0.00044797,12]
[314277293,1708140639706,-856.83,0.00044949,2]
[314277294,1708140639715,-4833.78305591,0.00045,17]
[314277295,1708140639724,-456.8,0.00045039,30]
[314277296,1708140639733,-1124.61,0.00045125,2]
[314277297,1708140639742,-1085.53403859,0.00045225,20]
[314277298,1708140639752,-151.021777,0.00045448,45]
[314277299,1708140639761,-456.8,0.00045712,30]
[314277300,1708140639771,-419.57,0.00045828,15]
[314277301,1708140639780,-274.3,0.00046126,2]
[314277302,1708140639789,-1000.0,0.000462,30]
[314277303,1708140639798,-456.8,0.00046384,30]
[314277304,1708140639807,-151.021777,0.00046448,46]
[314277305,1708140639817,-1085.53403859,0.00046582,22]
[314277306,1708140639827,-1628.0,0.000467,115]
[314277307,1708140639835,-209.0,0.00046945,10]
[314277308,1708140639845,-456.8,0.00047056,30]
[314277309,1708140639854,-347.0,0.000472,30]
[314277310,1708140639863,-1079.06,0.00047393,120]
[314277311,1708140639873,-1000.0,0.000474,2]
[314277312,1708140639882,-2332.69906319,0.00047418,13]
[314277313,1708140639891,-151.021777,0.00047448,46]
[314277314,1708140639900,-3800.0,0.000475,60]
[314277315,1708140639910,-200.0,0.00047566,30]
[314277316,1708140639919,-7668.70450871,0.0004759,9]
[314277317,1708140639928,-10372.53727009,0.00047907,9]
[314277318,1708140639937,-1085.53403859,0.0004794,23]
[314277319,1708140639946,-3516.41701046,0.00048,30]
[314277320,1708140639955,-1446.73,0.00048335,120]
[314277321,1708140639964,-274.3,0.00048389,2]
[314277322,1708140639973,-151.021777,0.00048448,47]
[314277323,1708140639982,-887.22211163,0.00048501,7]
[314277324,1708140639991,-634.8438945,0.00048542,7]
[314277325,1708140640000,-2735.33993868,0.00048542,7]
[314277326,1708140640010,-1000.0,0.0004879,2]
[314277327,1708140640020,-7500.0,0.0004888,30]
[314277328,1708140640031,-42000.0,0.00049,14]
[314277329,1708140640041,-1085.53403859,0.00049297,25]
[314277330,1708140640050,-3450.46485095,0.00049315,10]
[314277331,1708140640059,-1212.91218193,0.00049315,4]
[314277332,1708140640069,-500.0,0.00049315,60]
[314277333,1708140640078,-500.0,0.00049315,2]
[314277334,1708140640087,-500.0,0.00049315,60]
[314277335,1708140640095,-624.61673098,0.00049315,60]
[314277336,1708140640105,-500.0,0.00049315,60]
[314277337,1708140640115,-500.0,0.00049315,60]
[314277338,1708140640125,-500.0,0.00049315,60]
[314277339,1708140640136,-500.0,0.00049315,60]
[314277340,1708140640147,-500.0,0.00049315,60]
[314277341,1708140640156,-500.0,0.00049315,60]
[314277342,1708140640166,-509.69932775,0.00049315,60]
[314277343,1708140640175,-500.0,0.00049315,60]
[314277344,1708140640185,-500.0,0.00049315,60]
[314277345,1708140640195,-500.0,0.00049315,60]
[314277346,1708140640206,-500.0,0.00049315,60]
[314277347,1708140640214,-500.0,0.00049315,60]
[314277348,1708140640224,-500.0,0.00049315,60]
[314277349,1708140640233,-500.0,0.00049315,60]
[314277350,1708140640243,-500.0,0.00049315,60]
[314277351,1708140640252,-500.0,0.00049315,60]
[314277352,1708140640262,-418.15108518,0.00049315,60]
[314277353,1708140640271,-500.0,0.00049315,60]
[314277354,1708140640285,-518.62396801,0.00049315,60]
[314277355,1708140640295,-500.0,0.00049315,60]
[314277356,1708140640304,-512.21867618,0.00049315,60]
[314277357,1708140640314,-500.0,0.00049315,60]
[314277358,1708140640324,-500.0,0.00049315,60]
[314277359,1708140640333,-500.0,0.00049315,60]
[314277360,1708140640342,-500.0,0.00049315,60]
[314277361,1708140640353,-500.0,0.00049315,60]
[314277362,1708140640363,-500.0,0.00049315,60]
[314277363,1708140640372,-637.01834569,0.00049315,60]
[314277364,1708140640382,-500.0,0.00049315,60]
[314277365,1708140640391,-500.0,0.00049315,60]
[314277366,1708140640400,-500.0,0.00049315,60]
[314277367,1708140640409,-525.54881652,0.00049315,60]
[314277368,1708140640418,-519.17862808,0.00049315,60]
[314277369,1708140640427,-837.39,0.00049315,60]
[314277370,1708140640436,-500.0,0.00049315,60]
[314277371,1708140640446,-433.70221633,0.00049315,60]
[314277372,1708140640455,-500.0,0.00049315,60]
[314277373,1708140640465,-500.0,0.00049315,60]
[314277374,1708140640475,-527.55136183,0.00049315,60]
[314277375,1708140640484,-579.77221444,0.00049315,60]
[314277376,1708140640493,-289.25224024,0.00049315,60]
[314277377,1708140640502,-500.0,0.00049315,60]
[314277378,1708140640512,-500.0,0.00049315,60]
[314277379,1708140640523,-500.0,0.00049315,60]
[314277380,1708140640533,-500.0,0.00049315,60]
[314277381,1708140640543,-500.0,0.00049315,60]
[314277382,1708140640553,-402.51106368,0.00049315,60]
[314277383,1708140640564,-500.0,0.00049315,14]
[314277384,1708140640573,-500.0,0.00049315,60]
[314277385,1708140640583,-500.0,0.00049315,60]
[314277386,1708140640593,-500.0,0.00049315,60]
[314277387,1708140640602,-500.0,0.00049315,60]
[314277388,1708140640610,-500.0,0.00049315,60]
[314277389,1708140640622,-1067.42,0.00049315,60]
[314277390,1708140640632,-647.4073637,0.00049315,60]
[314277391,1708140640642,-500.0,0.00049315,60]
[314277392,1708140640651,-500.0,0.00049315,60]
[314277393,1708140640662,-653.34,0.00049315,60]
[314277394,1708140640671,-500.0,0.00049315,60]
[314277395,1708140640681,-500.0,0.00049315,60]
[314277396,1708140640691,-500.0,0.00049315,60]
[314277397,1708140640703,-500.0,0.00049315,60]
[314277398,1708140640714,-500.0,0.00049315,60]
[314277399,1708140640725,-536.81,0.00049315,60]
[314277400,1708140640734,-500.0,0.00049315,60]
[314277401,1708140640744,-500.0,0.00049315,60]
[314277402,1708140640753,-2599.84,0.00049315,60]
[314277403,1708140640762,-500.0,0.00049315,60]
[314277404,1708140640771,-500.0,0.00049315,60]
[314277405,1708140640780,-500.0,0.00049315,2]
[314277406,1708140640789,-500.0,0.00049315,2]
[314277407,1708140640798,-500.0,0.00049315,60]
[314277408,1708140640807,-1107.59470691,0.00049402,30]
[314277409,1708140640817,-151.021777,0.00049448,47]
[314277410,1708140640826,-419.57,0.00049564,120]
[314277411,1708140640835,-500.0,0.00049589,60]
[314277412,1708140640844,-500.0,0.00049589,2]
[314277413,1708140640853,-234.61051149,0.00049589,60]
[314277414,1708140640862,-500.0,0.00049589,60]
[314277415,1708140640871,-500.0,0.00049589,60]
[314277416,1708140640880,-500.0,0.00049589,60]
[314277417,1708140640889,-500.0,0.00049589,60]
[314277418,1708140640898,-264.0034848,0.00049589,60]
[314277419,1708140640908,-500.0,0.00049589,60]
[314277420,1708140640917,-500.0,0.00049589,60]
[314277421,1708140641053,-500.0,0.00049589,60]
[314277422,1708140641063,-500.0,0.00049589,60]
[314277423,1708140641072,-500.0,0.00049589,60]
[314277424,1708140641081,-500.0,0.00049589,60]
[314277425,1708140641090,-500.0,0.00049589,60]
[314277426,1708140641100,-500.0,0.00049589,60]
[314277427,1708140641109,-500.0,0.00049589,60]
[314277428,1708140641118,-352.51365004,0.00049589,60]
[314277429,1708140641127,-500.0,0.00049589,60]
[314277430,1708140641136,-500.0,0.00049589,60]
[314277431,1708140641146,-500.0,0.00049589,60]
[314277432,1708140641155,-500.0,0.00049589,60]
[314277433,1708140641165,-500.0,0.00049589,60]
[314277434,1708140641174,-500.0,0.00049589,60]
[314277435,1708140641184,-500.0,0.00049589,60]
[314277436,1708140641193,-500.0,0.00049589,60]
[314277437,1708140641203,-500.0,0.00049589,60]
[314277438,1708140641213,-354.71468194,0.00049589,60]
[314277439,1708140641222,-500.0,0.00049589,60]
[314277440,1708140641232,-837.39,0.00049589,60]
[314277441,1708140641241,-500.0,0.00049589,60]
[314277442,1708140641251,-500.0,0.00049589,60]
[314277443,1708140641260,-500.0,0.00049589,60]
[314277444,1708140641270,-500.0,0.00049589,60]
[314277445,1708140641284,-500.0,0.00049589,60]
[314277446,1708140641293,-338.69973822,0.00049589,60]
[314277447,1708140641303,-500.0,0.00049589,60]
[314277448,1708140641312,-500.0,0.00049589,14]
[314277449,1708140641322,-500.0,0.00049589,60]
[314277450,1708140641331,-500.0,0.00049589,60]
[314277451,1708140641341,-512.67530741,0.00049589,60]
[314277452,1708140641352,-500.0,0.00049589,60]
[314277453,1708140641362,-500.0,0.00049589,60]
[314277454,1708140641370,-1067.42,0.00049589,60]
[314277455,1708140641380,-500.0,0.00049589,60]
[314277456,1708140641389,-500.0,0.00049589,60]
[314277457,1708140641398,-653.34,0.00049589,60]
[314277458,1708140641407,-500.0,0.00049589,60]
[314277459,1708140641417,-500.0,0.00049589,60]
[314277460,1708140641426,-500.0,0.00049589,60]
[314277461,1708140641436,-500.0,0.00049589,60]
[314277462,1708140641445,-500.0,0.00049589,60]
[314277463,1708140641454,-536.81,0.00049589,60]
[314277464,1708140641464,-500.0,0.00049589,60]
[314277465,1708140641473,-500.0,0.00049589,60]
[314277466,1708140641482,-2599.84,0.00049589,60]
[314277467,1708140641491,-500.0,0.00049589,60]
[314277468,1708140641500,-500.0,0.00049589,2]
[314277469,1708140641509,-500.0,0.00049589,2]
[314277470,1708140641518,-500.0,0.00049589,60]
[314277471,1708140641527,-3580.59,0.00049589,5]
[314277472,1708140641536,-1791.9,0.00049829,117]
[314277473,1708140641545,-182.51667861,0.00049862,9]
[314277474,1708140641555,-216.28515772,0.00049862,9]
[314277475,1708140641564,-182.51667861,0.00049862,9]
[314277476,1708140641573,-216.28515772,0.00049862,9]
[314277477,1708140641582,-500.0,0.00049863,60]
[314277478,1708140641592,-500.0,0.00049863,2]
[314277479,1708140641602,-500.0,0.00049863,60]
[314277480,1708140641611,-500.0,0.00049863,60]
[314277481,1708140641621,-500.0,0.00049863,60]
[314277482,1708140641630,-499.34942098,0.00049863,60]
[314277483,1708140641639,-500.0,0.00049863,60]
[314277484,1708140641648,-500.0,0.00049863,60]
[314277485,1708140641658,-500.0,0.00049863,60]
[314277486,1708140641667,-500.0,0.00049863,60]
[314277487,1708140641677,-500.0,0.00049863,60]
[314277488,1708140641686,-500.0,0.00049863,60]
[314277489,1708140641696,-500.0,0.00049863,60]
[314277490,1708140641705,-500.0,0.00049863,60]
[314277491,1708140641714,-500.0,0.00049863,60]
[314277492,1708140641723,-500.0,0.00049863,60]
[314277493,1708140641732,-500.0,0.00049863,60]
[314277494,1708140641741,-500.0,0.00049863,60]
[314277495,1708140641750,-500.0,0.00049863,60]
[314277496,1708140641759,-500.0,0.00049863,60]
[314277497,1708140641768,-500.0,0.00049863,60]
[314277498,1708140641777,-500.0,0.00049863,60]
[314277499,1708140641787,-500.0,0.00049863,60]
[314277500,1708140641796,-500.0,0.00049863,60]
[314277501,1708140641805,-500.0,0.00049863,60]
[314277502,1708140641814,-837.39,0.00049863,60]
[314277503,1708140641824,-500.0,0.00049863,60]
[314277504,1708140641832,-500.0,0.00049863,60]
[314277505,1708140641842,-500.0,0.00049863,60]
[314277506,1708140641851,-500.0,0.00049863,60]
[314277507,1708140641861,-500.0,0.00049863,60]
[314277508,1708140641870,-500.0,0.00049863,60]
[314277509,1708140641879,-500.0,0.00049863,14]
[314277510,1708140641888,-500.0,0.00049863,60]
[314277511,1708140641897,-500.0,0.00049863,60]
[314277512,1708140641906,-500.0,0.00049863,60]
[314277513,1708140641916,-500.0,0.00049863,60]
[314277514,1708140641924,-1067.42,0.00049863,60]
[314277515,1708140641934,-500.0,0.00049863,60]
[314277516,1708140641943,-500.0,0.00049863,60]
[314277517,1708140641952,-653.34,0.00049863,60]
[314277518,1708140641962,-500.0,0.00049863,60]
[314277519,1708140641971,-500.0,0.00049863,60]
[314277520,1708140641980,-500.0,0.00049863,60]
[314277521,1708140641990,-337.700162,0.00049863,60]
[314277522,1708140641999,-500.0,0.00049863,60]
[314277523,1708140642008,-536.81,0.00049863,60]
[314277524,1708140642018,-500.0,0.00049863,60]
[314277525,1708140642027,-500.0,0.00049863,60]
[314277526,1708140642037,-2599.84,0.00049863,60]
[314277527,1708140642047,-500.0,0.00049863,60]
[314277528,1708140642056,-500.0,0.00049863,2]
[314277529,1708140642066,-589.71593522,0.00049863,2]
[314277530,1708140642074,-500.0,0.00049863,60]
[314277531,1708140642083,-405.38,0.00049863,30]
[314277532,1708140642093,-314.28780366,0.00049999,120]
[314277533,1708140642104,-2500.0,0.0005,120]
[314277534,1708140642113,-150.0,0.0005,30]
[314277535,1708140642123,-2332.69906319,0.00050038,14]
[314277536,1708140642132,-1000.0,0.000501,2]
[314277537,1708140642141,-607.86569939,0.00050136,60]
[314277538,1708140642150,-500.0,0.00050136,2]
[314277539,1708140642160,-500.0,0.00050136,60]
[314277540,1708140642169,-549.11123908,0.00050136,60]
[314277541,1708140642181,-500.0,0.00050136,60]
[314277542,1708140642191,-500.0,0.00050136,60]
[314277543,1708140642202,-500.0,0.00050136,60]
[314277544,1708140642211,-500.0,0.00050136,60]
[314277545,1708140642221,-500.0,0.00050136,60]
[314277546,1708140642231,-500.0,0.00050136,60]
[314277547,1708140642241,-500.0,0.00050136,60]
[314277548,1708140642250,-500.0,0.00050136,60]
[314277549,1708140642260,-500.0,0.00050136,60]
[314277550,1708140642270,-500.0,0.00050136,60]
[314277551,1708140642283,-500.0,0.00050136,60]
[314277552,1708140642292,-500.0,0.00050136,60]
[314277553,1708140642302,-508.99019215,0.00050136,60]
[314277554,1708140642312,-500.0,0.00050136,60]
[314277555,1708140642322,-500.0,0.00050136,60]
[314277556,1708140642331,-500.0,0.00050136,60]
[314277557,1708140642341,-500.0,0.00050136,60]
[314277558,1708140642354,-500.0,0.00050136,60]
[314277559,1708140642365,-500.0,0.00050136,60]
[314277560,1708140642374,-500.0,0.00050136,60]
[314277561,1708140642383,-837.39,0.00050136,60]
[314277562,1708140642392,-500.0,0.00050136,60]
[314277563,1708140642401,-500.0,0.00050136,60]
[314277564,1708140642409,-500.0,0.00050136,60]
[314277565,1708140642419,-500.0,0.00050136,60]
[314277566,1708140642428,-263.65197424,0.00050136,60]
[314277567,1708140642437,-500.0,0.00050136,60]
[314277568,1708140642447,-500.0,0.00050136,14]
[314277569,1708140642456,-500.0,0.00050136,60]
[314277570,1708140642466,-500.0,0.00050136,60]
[314277571,1708140642475,-500.0,0.00050136,60]
[314277572,1708140642484,-500.0,0.00050136,60]
[314277573,1708140642494,-1067.42,0.00050136,60]
[314277574,1708140642503,-500.0,0.00050136,60]
[314277575,1708140642512,-500.0,0.00050136,60]
[314277576,1708140642522,-653.34,0.00050136,60]
[314277577,1708140642531,-500.0,0.00050136,60]
[314277578,1708140642540,-500.0,0.00050136,60]
[314277579,1708140642549,-500.0,0.00050136,60]
[314277580,1708140642558,-517.71927557,0.00050136,60]
[314277581,1708140642568,-536.81,0.00050136,60]
[314277582,1708140642578,-500.0,0.00050136,60]
[314277583,1708140642587,-500.0,0.00050136,60]
[314277584,1708140642597,-2599.84,0.00050136,60]
[314277585,1708140642609,-500.0,0.00050136,60]
[314277586,1708140642618,-585.60505714,0.00050136,2]
[314277587,1708140642627,-500.0,0.00050136,60]
[314277589,1708140642636,-940.8,0.000504,2]
[314277591,1708140642646,-500.0,0.0005041,2]
[314277593,1708140642654,-500.0,0.0005041,60]
[314277594,1708140642664,-463.31135715,0.0005041,60]
[314277595,1708140642673,-500.0,0.0005041,60]
[314277596,1708140642682,-500.0,0.0005041,60]
[314277597,1708140642690,-405.09357718,0.0005041,60]
[314277599,1708140642700,-500.0,0.0005041,60]
[314277600,1708140642709,-500.0,0.0005041,60]
[314277601,1708140642718,-500.0,0.0005041,60]
[314277602,1708140642727,-500.0,0.0005041,60]
[314277603,1708140642737,-631.295172,0.0005041,60]
[314277604,1708140642746,-500.0,0.0005041,60]
[314277606,1708140642755,-500.0,0.0005041,60]
[314277608,1708140642763,-490.82729683,0.0005041,60]
[314277610,1708140642773,-500.0,0.0005041,60]
[314277611,1708140642781,-500.0,0.0005041,60]
[314277612,1708140642790,-597.62152051,0.0005041,60]
[314277613,1708140642800,-500.0,0.0005041,60]
[314277614,1708140642809,-500.0,0.0005041,60]
[314277615,1708140642818,-500.0,0.0005041,60]
[314277616,1708140642827,-500.0,0.0005041,60]
[314277617,1708140642836,-837.39,0.0005041,60]
[314277618,1708140642845,-500.0,0.0005041,60]
[314277619,1708140642855,-500.0,0.0005041,60]
[314277620,1708140642864,-500.0,0.0005041,60]
[314277621,1708140642873,-311.60546673,0.0005041,60]
[314277622,1708140642882,-619.83925884,0.0005041,60]
[314277623,1708140642891,-500.0,0.0005041,14]
[314277624,1708140642900,-500.0,0.0005041,60]
[314277625,1708140642910,-500.0,0.0005041,60]
[314277626,1708140642919,-500.0,0.0005041,60]
[314277627,1708140642929,-500.0,0.0005041,60]
[314277628,1708140642938,-1067.42,0.0005041,60]
[314277629,1708140642948,-544.75423765,0.0005041,60]
[314277630,1708140642958,-500.0,0.0005041,60]
[314277631,1708140642967,-653.34,0.0005041,60]
[314277632,1708140642976,-500.0,0.0005041,60]
[314277633,1708140642985,-500.0,0.0005041,60]
[314277634,1708140642994,-279.23430409,0.0005041,60]
[314277635,1708140643003,-536.81,0.0005041,60]
[314277636,1708140643012,-500.0,0.0005041,60]
[314277637,1708140643021,-500.0,0.0005041,60]
[314277638,1708140643031,-2599.84,0.0005041,60]
[314277639,1708140643040,-500.0,0.0005041,60]
[314277640,1708140643049,-615.5105078,0.0005041,60]
[314277641,1708140643058,-151.021777,0.00050448,80]
[314277642,1708140643067,-7668.70450871,0.00050475,11]
[314277643,1708140643076,-274.3,0.00050653,2]
[314277644,1708140643085,-1085.53403859,0.00050655,27]
[314277645,1708140643094,-182.51667861,0.00050683,10]
[314277646,1708140643104,-216.28515772,0.00050683,10]
[314277647,1708140643113,-500.0,0.00050684,2]
[314277648,1708140643122,-277.00467667,0.00050684,60]
[314277649,1708140643141,-222.99532333,0.00050684,60]
[314277650,1708140643150,-500.0,0.00050684,60]
[314277651,1708140643159,-459.7867482,0.00050684,60]
[314277652,1708140643168,-500.0,0.00050684,60]
[314277653,1708140643178,-500.0,0.00050684,60]
[314277654,1708140643189,-500.0,0.00050684,60]
[314277655,1708140643199,-271.85064264,0.00050684,60]
[314277656,1708140643209,-500.0,0.00050684,60]
[314277657,1708140643219,-500.0,0.00050684,60]
[314277658,1708140643228,-500.0,0.00050684,60]
[314277659,1708140643238,-500.0,0.00050684,60]
[314277660,1708140643247,-500.0,0.00050684,60]
[314277661,1708140643256,-500.0,0.00050684,60]
[314277662,1708140643265,-500.0,0.00050684,60]
[314277663,1708140643275,-500.0,0.00050684,60]
[314277664,1708140643290,-837.39,0.00050684,60]
[314277665,1708140643299,-500.0,0.00050684,60]
[314277666,1708140643308,-500.0,0.00050684,60]
[314277667,1708140643318,-500.0,0.00050684,60]
[314277668,1708140643327,-500.0,0.00050684,14]
[314277669,1708140643337,-272.23280479,0.00050684,60]
[314277670,1708140643346,-500.0,0.00050684,60]
[314277671,1708140643359,-500.0,0.00050684,60]
[314277672,1708140643369,-335.63084127,0.00050684,60]
[314277673,1708140643379,-1067.42,0.00050684,60]
[314277674,1708140643388,-454.28587719,0.00050684,60]
[314277675,1708140643397,-653.34,0.00050684,60]
[314277676,1708140643406,-500.0,0.00050684,60]
[314277677,1708140643415,-500.0,0.00050684,60]
[314277678,1708140643424,-536.81,0.00050684,60]
[314277679,1708140643433,-284.4857303,0.00050684,60]
[314277680,1708140643442,-500.0,0.00050684,60]
[314277681,1708140643451,-2599.84,0.00050684,60]
[314277682,1708140643461,-500.0,0.00050684,60]
[314277683,1708140643470,-10372.53727009,0.00050895,12]
[314277684,1708140643479,-500.0,0.00050958,2]
[314277685,1708140643488,-500.0,0.00050958,60]
[314277686,1708140643497,-500.0,0.00050958,60]
[314277687,1708140643506,-575.17685144,0.00050958,60]
[314277688,1708140643515,-500.0,0.00050958,60]
[314277689,1708140643525,-517.9079206,0.00050958,60]
[314277690,1708140643534,-500.0,0.00050958,60]
[314277691,1708140643543,-500.0,0.00050958,60]
[314277692,1708140643552,-492.1771491,0.00050958,60]
[314277693,1708140643561,-500.0,0.00050958,60]
[314277694,1708140643570,-500.0,0.00050958,60]
[314277695,1708140643579,-500.0,0.00050958,60]
[314277696,1708140643588,-500.0,0.00050958,60]
[314277697,1708140643598,-500.0,0.00050958,60]
[314277698,1708140643607,-837.39,0.00050958,60]
[314277699,1708140643616,-500.0,0.00050958,60]
[314277700,1708140643625,-500.0,0.00050958,60]
[314277701,1708140643634,-500.0,0.00050958,60]
[314277702,1708140643642,-500.0,0.00050958,14]
[314277703,1708140643651,-416.17488538,0.00050958,60]
[314277704,1708140643660,-500.0,0.00050958,60]
[314277705,1708140643669,-1067.42,0.00050958,60]
[314277706,1708140643678,-653.34,0.00050958,60]
[314277707,1708140643688,-569.35975028,0.00050958,60]
[314277708,1708140643696,-500.0,0.00050958,60]
[314277709,1708140643706,-536.81,0.00050958,60]
[314277710,1708140643715,-592.20237577,0.00050958,60]
[314277711,1708140643724,-2599.84,0.00050958,60]
[314277712,1708140643734,-500.0,0.00050958,60]
[314277713,1708140643743,-615.10186374,0.00051232,2]
[314277714,1708140643752,-500.0,0.00051232,60]
[314277715,1708140643761,-500.0,0.00051232,60]
[314277716,1708140643770,-500.0,0.00051232,60]
[314277717,1708140643780,-500.0,0.00051232,60]
[314277718,1708140643789,-500.0,0.00051232,60]
[314277719,1708140643799,-500.0,0.00051232,60]
[314277720,1708140643807,-500.0,0.00051232,60]
[314277721,1708140643817,-500.0,0.00051232,60]
[314277722,1708140643826,-500.0,0.00051232,60]
[314277723,1708140643835,-500.0,0.00051232,60]
[314277724,1708140643844,-837.39,0.00051232,60]
[314277725,1708140643854,-500.0,0.00051232,60]
[314277726,1708140643863,-389.1760032,0.00051232,60]
[314277727,1708140643872,-500.0,0.00051232,60]
[314277728,1708140643881,-500.0,0.00051232,14]
[314277729,1708140643890,-418.52023886,0.00051232,60]
[314277730,1708140643899,-1067.42,0.00051232,60]
[314277731,1708140643909,-653.34,0.00051232,60]
[314277732,1708140643918,-500.0,0.00051232,60]
[314277733,1708140643927,-536.81,0.00051232,60]
[314277734,1708140643937,-2599.84,0.00051232,60]
[314277735,1708140643946,-500.0,0.00051232,60]
[314277736,1708140643956,-2255.6186853,0.0005138,30]
[314277737,1708140643965,-14678.96425443,0.00051384,2]
[314277738,1708140643975,-440.14295326,0.00051384,2]
[314277739,1708140643985,-151.021777,0.00051448,80]
[314277740,1708140643994,-5000.0,0.000515,60]
[314277741,1708140644004,-3000.0,0.000515,45]
[314277742,1708140644013,-648.96682117,0.00051506,60]
[314277743,1708140644022,-500.0,0.00051506,60]
[314277744,1708140644031,-500.0,0.00051506,60]
[314277745,1708140644041,-583.97772176,0.00051506,60]
[314277746,1708140644050,-500.0,0.00051506,60]
[314277747,1708140644059,-500.0,0.00051506,60]
[314277748,1708140644069,-500.0,0.00051506,60]
[314277749,1708140644079,-500.0,0.00051506,60]
[314277750,1708140644088,-500.0,0.00051506,60]
[314277751,1708140644097,-500.0,0.00051506,60]
[314277752,1708140644107,-500.0,0.00051506,60]
[314277753,1708140644116,-837.39,0.00051506,60]
[314277754,1708140644125,-500.0,0.00051506,60]
[314277755,1708140644134,-500.0,0.00051506,14]
[314277756,1708140644143,-1067.42,0.00051506,60]
[314277757,1708140644152,-653.34,0.00051506,60]
[314277758,1708140644162,-500.0,0.00051506,60]
[314277759,1708140644171,-536.81,0.00051506,60]
[314277760,1708140644181,-2599.84,0.00051506,60]
[314277761,1708140644191,-500.0,0.00051506,60]
[314277762,1708140644200,-456.8,0.00051633,30]
[314277763,1708140644210,-371.05,0.00051718,2]
[314277764,1708140644220,-500.0,0.0005178,60]
[314277765,1708140644230,-500.0,0.0005178,60]
[314277766,1708140644239,-500.0,0.0005178,60]
[314277767,1708140644248,-500.0,0.0005178,60]
[314277768,1708140644258,-187.18562287,0.0005178,60]
[314277769,1708140644267,-500.0,0.0005178,60]
[314277770,1708140644279,-162.59254575,0.0005178,60]
[314277771,1708140644290,-500.0,0.0005178,60]
[314277772,1708140644300,-500.0,0.0005178,60]
[314277773,1708140644309,-837.39,0.0005178,60]